fUST/lending_fUST_20251013
["ID","MTS","AMOUNT","RATE_DAILY","PERIOD"]
[391006225,1760284803185,8102.64203843,0.00016,2]
[391006226,1760284803371,10000.01,0.00016,2]
[391006227,1760284803401,10000.01,0.00016,2]
[391006228,1760284803434,10000.01,0.00016,2]
[391006229,1760284803464,10000.01,0.00016,2]
[391006230,1760284803492,5911.52826407,0.00016,2]
[391006237,1760284836168,158.38369845,0.00020967,2]
[391006238,1760284862688,1560.87,0.00018768,2]
[391006239,1760284863164,3121.73,0.00019662,2]
[391006240,1760284863616,4682.6,0.00020556,2]
[391006241,1760284916139,151.25801289,0.00020515,2]
[391006242,1760284917945,1421.0506196,0.00020962,2]
[391006243,1760284942485,623.37136751,0.00019113,2]
[391006244,1760284942511,818.29863249,0.00019113,2]
[391006245,1760284942913,2883.34,0.00020023,2]
[391006246,1760284943407,4325.02,0.00020933,2]
[391006247,1760284958482,8000.0,0.00021,2]
[391006248,1760285022819,1331.58,0.00019136,2]
[391006249,1760285023243,668.43,0.00020047,2]
[391006250,1760285023270,1994.73,0.00020047,2]
[391006251,1760285023673,3994.74,0.00020958,2]
[391006252,1760285102935,1261.95,0.0001877,2]
[391006253,1760285103111,2748.59,0.00016,2]
[391006254,1760285103138,1171.95587764,0.00016,2]
[391006255,1760285103407,2523.9,0.00019664,2]
[391006256,1760285104027,3785.86,0.00020558,2]
[391006261,1760285129910,402.0648883,0.00020962,2]
[391006262,1760285183102,1165.58,0.00018763,2]
[391006263,1760285183654,2331.17,0.00019657,2]
[391006264,1760285183942,3496.75,0.0002055,2]
[391006266,1760285276582,1076.58,0.00018774,2]
[391006267,1760285277050,1527.8651117,0.00019668,2]
[391006268,1760285277077,625.2848883,0.00019668,2]
[391006269,1760285277502,3229.73,0.00020562,2]
[391006270,1760285356906,994.37,0.00018772,2]
[391006271,1760285357377,1988.73,0.00019666,2]
[391006272,1760285357786,2983.1,0.0002056,2]
[391006319,1760285432235,-256.04000004,0.00021067,2]
[391006326,1760285432303,-743.95999996,0.00021067,2]
[391006327,1760285432313,-434.46197343,0.00021067,2]
[391006329,1760285432323,-152.81485953,0.000211,2]
[391006331,1760285432333,-203.84,0.0002149,2]
[391006333,1760285432342,-168.0,0.00021603,2]
[391006335,1760285432351,-1093.0,0.00021615,2]
[391006337,1760285432360,-300.0,0.00021616,2]
[391006339,1760285432369,-9769.19592691,0.00021617,2]
[391006341,1760285432378,-5000.0,0.00021617,2]
[391006343,1760285432388,-5000.0,0.00021617,2]
[391006345,1760285432398,-5000.0,0.00021617,2]
[391006347,1760285432407,-5000.0,0.00021617,2]
[391006348,1760285432416,-168.0,0.00021648,2]
[391006350,1760285432425,-499.63126944,0.00021667,2]
[391006352,1760285432435,-168.0,0.000217,2]
[391006354,1760285432444,-168.0,0.00021855,2]
[391006356,1760285432453,-504.82913097,0.00021881,2]
[391006358,1760285432462,-500.0,0.00021889,2]
[391006360,1760285432472,-800.4747066,0.00021916,2]
[391006362,1760285432484,-999.0,0.00021917,2]
[391006364,1760285432493,-1500.0,0.00021917,10]
[391006366,1760285432502,-300.0,0.00021919,20]
[391006368,1760285432512,-300.0,0.00021919,20]
[391006370,1760285432521,-300.0,0.00021919,20]
[391006372,1760285432530,-300.0,0.00021919,20]
[391006374,1760285432540,-300.0,0.00021919,20]
[391006376,1760285432550,-300.0,0.00021919,20]
[391006378,1760285432560,-300.0,0.00021919,20]
[391006380,1760285432570,-300.0,0.00021919,20]
[391006382,1760285432579,-300.0,0.00021919,20]
[391006384,1760285432588,-300.0,0.00021919,20]
[391006386,1760285432598,-300.0,0.00021919,20]
[391006388,1760285432607,-300.0,0.00021919,20]
[391006390,1760285432617,-300.0,0.00021919,20]
[391006392,1760285432627,-300.0,0.00021919,20]
[391006394,1760285432636,-300.0,0.00021919,20]
[391006396,1760285432646,-890.61339424,0.0002199,2]
[391006398,1760285432655,-247.32849485,0.00022033,2]
[391006400,1760285432665,-156.93201907,0.00022033,2]
[391006402,1760285432675,-500.0,0.00022033,2]
[391006404,1760285432689,-500.0,0.00022033,2]
[391006406,1760285432698,-151.0,0.00022034,2]
[391006408,1760285432707,-500.0,0.00022034,2]
[391006410,1760285432716,-500.0,0.00022034,2]
[391006411,1760285432725,-500.0,0.00022034,2]
[391006413,1760285432740,-500.0,0.00022034,2]
[391006415,1760285432749,-500.0,0.00022034,2]
[391006417,1760285432758,-500.0,0.00022034,2]
[391006419,1760285432768,-500.0,0.00022034,2]
[391006421,1760285432777,-500.0,0.00022034,2]
[391006423,1760285432791,-500.0,0.00022034,2]
[391006425,1760285432800,-351.45523641,0.00022034,2]
[391006427,1760285432809,-500.0,0.00022034,2]
[391006429,1760285432820,-500.0,0.00022034,2]
[391006431,1760285432828,-500.0,0.00022034,2]
[391006433,1760285432838,-500.0,0.00022034,2]
[391006435,1760285432847,-500.0,0.00022034,2]
[391006437,1760285432858,-18603.8837,0.00022034,2]
[391006439,1760285432868,-500.0,0.00022034,2]
[391006441,1760285432878,-500.0,0.00022034,2]
[391006443,1760285432887,-500.0,0.00022034,2]
[391006445,1760285432896,-500.0,0.00022034,2]
[391006447,1760285432905,-248.04596635,0.00022034,2]
[391006460,1760285433021,-600.0,0.00022049,20]
[391006462,1760285433031,-168.0,0.00022078,2]
[391006464,1760285433040,-200.0,0.000221,2]
[391006466,1760285433050,-310.28,0.0002213,2]
[391006468,1760285433059,-1041.0,0.00022161,2]
[391006470,1760285433068,-168.0,0.00022188,2]
[391006472,1760285433077,-1500.0,0.00022191,10]
[391006474,1760285433087,-3000.0,0.000222,2]
[391006476,1760285433096,-3000.0,0.000222,2]
[391006478,1760285433105,-3000.0,0.0002221,2]
[391006480,1760285433114,-3000.0,0.0002221,2]
[391006482,1760285433124,-3000.0,0.0002222,2]
[391006484,1760285433134,-3000.0,0.0002222,2]
[391006486,1760285433144,-3000.0,0.0002223,2]
[391006487,1760285433153,-3000.0,0.0002223,2]
[391006489,1760285433165,-500.0,0.00022237,10]
[391006492,1760285433176,-3000.0,0.0002224,2]
[391006493,1760285433186,-3000.0,0.0002224,2]
[391006496,1760285433196,-3000.0,0.0002225,2]
[391006497,1760285433206,-3000.0,0.0002225,2]
[391006500,1760285433216,-693.64,0.0002225,10]
[391006501,1760285433225,-4989.529327,0.0002226,2]
[391006503,1760285433239,-3000.0,0.0002226,2]
[391006505,1760285433248,-564.80056545,0.00022267,2]
[391006507,1760285433258,-3000.0,0.0002227,2]
[391006509,1760285433267,-500.0,0.00022273,2]
[391006511,1760285433277,-3000.0,0.0002228,2]
[391006513,1760285433287,-3000.0,0.0002229,2]
[391006515,1760285433297,-3000.0,0.000223,2]
[391006517,1760285433306,-500.86697932,0.000223,2]
[391006519,1760285433315,-150.0,0.000223,5]
[391006521,1760285433324,-1041.0,0.00022308,2]
[391006522,1760285433334,-3000.0,0.0002231,2]
[391006523,1760285433343,-3000.0,0.0002232,2]
[391006525,1760285433352,-3000.0,0.0002233,2]
[391006527,1760285433361,-3000.0,0.0002234,2]
[391006528,1760285433370,-3000.0,0.0002235,2]
[391006530,1760285433379,-3000.0,0.0002236,2]
[391006532,1760285433388,-396.25518947,0.00022369,2]
[391006533,1760285433397,-214.97240001,0.00022369,2]
[391006534,1760285433407,-3000.0,0.0002237,2]
[391006535,1760285433416,-143180.00556535,0.0002237,2]
[391006536,1760285433425,-168.0,0.00022374,2]
[391006537,1760285433434,-3000.0,0.0002238,2]
[391006538,1760285433444,-3000.0,0.0002239,2]
[391006539,1760285433453,-4084.47,0.00022398,2]
[391006540,1760285433463,-3000.0,0.000224,2]
[391006541,1760285433472,-981.0,0.00022401,2]
[391006542,1760285433484,-630.0,0.00022401,2]
[391006543,1760285433493,-2160.0,0.00022401,2]
[391006544,1760285433503,-4197.0,0.00022404,2]
[391006545,1760285433512,-3000.0,0.0002241,2]
[391006546,1760285433521,-3000.0,0.0002242,2]
[391006547,1760285433530,-3000.0,0.0002243,2]
[391006548,1760285433539,-3000.0,0.0002244,2]
[391006549,1760285433549,-3000.0,0.0002245,2]
[391006550,1760285433558,-3000.0,0.0002246,2]
[391006551,1760285433567,-1500.0,0.00022465,10]
[391006552,1760285433576,-3000.0,0.0002247,2]
[391006553,1760285433586,-3000.0,0.0002248,2]
[391006554,1760285433596,-10000.0,0.00022488,2]
[391006555,1760285433605,-3000.0,0.0002249,2]
[391006556,1760285433615,-3000.0,0.000225,2]
[391006557,1760285433625,-3000.0,0.0002251,2]
[391006558,1760285433636,-200.0,0.0002251,2]
[391006559,1760285433647,-500.0,0.00022511,10]
[391006560,1760285433657,-3000.0,0.0002252,2]
[391006561,1760285433666,-168.0,0.00022529,2]
[391006562,1760285433676,-3000.0,0.0002253,2]
[391006563,1760285433686,-3000.0,0.0002254,2]
[391006564,1760285433695,-3000.0,0.0002255,2]
[391006565,1760285433707,-3000.0,0.0002256,2]
[391006566,1760285433716,-3000.0,0.0002257,2]
[391006567,1760285433725,-3000.0,0.0002258,2]
[391006568,1760285433738,-18603.8837,0.00022582,2]
[391006569,1760285433748,-3000.0,0.0002259,2]
[391006570,1760285433757,-3000.0,0.000226,2]
[391006571,1760285433766,-3000.0,0.0002261,2]
[391006572,1760285433779,-3000.0,0.0002262,2]
[391006573,1760285433788,-3000.0,0.0002263,2]
[391006574,1760285433797,-4010.470672,0.0002264,2]
[391006575,1760285433807,-44570.1344937,0.00022721,2]
[391006576,1760285433817,-457.3511894,0.00022722,2]
[391006577,1760285433827,-1500.0,0.00022739,10]
[391006578,1760285433848,-500.0,0.00022773,2]
[391006579,1760285433868,-500.0,0.00022773,2]
[391006580,1760285433881,-500.0,0.00022773,2]
[391006581,1760285433891,-500.0,0.00022773,2]
[391006582,1760285433901,-500.0,0.00022773,2]
[391006583,1760285433910,-500.0,0.00022773,2]
[391006584,1760285433919,-500.0,0.00022773,2]
[391006585,1760285433928,-500.0,0.00022773,2]
[391006586,1760285433940,-500.0,0.00022773,2]
[391006587,1760285433950,-500.0,0.00022773,2]
[391006588,1760285433960,-500.86991837,0.00022773,2]
[391006589,1760285433970,-161.92047401,0.00022773,2]
[391006590,1760285433980,-500.0,0.00022773,2]
[391006591,1760285433993,-500.0,0.00022773,2]
[391006592,1760285434002,-500.0,0.00022785,10]
[391006593,1760285434011,-500.0,0.00022821,2]
[391006594,1760285434021,-168.0,0.00022822,2]
[391006595,1760285434031,-168.0,0.00022917,2]
[391006596,1760285434040,-168.0,0.00022925,2]
[391006597,1760285434050,-160.0,0.00023,2]
[391006598,1760285434059,-949.33798078,0.00023013,10]
[391006599,1760285434069,-168.0,0.00023043,2]
[391006600,1760285434078,-500.0,0.00023059,10]
[391006601,1760285434087,-402.2877588,0.0002306,10]
[391006602,1760285434097,-200.0,0.000231,2]
[391006603,1760285434107,-500.0,0.00023182,2]
[391006604,1760285434117,-168.0,0.00023226,2]
[391006605,1760285434127,-500.0,0.00023247,2]
[391006606,1760285434137,-457.35118938,0.00023267,2]
[391006607,1760285434146,-168.0,0.00023269,2]
[391006608,1760285434156,-501.9743413,0.00023287,2]
[391006609,1760285434166,-500.0,0.0002329,2]
[391006610,1760285434175,-500.0,0.0002332,2]
[391006611,1760285434186,-1000.0,0.00023321,2]
[391006612,1760285434196,-1000.0,0.00023321,2]
[391006613,1760285434205,-1000.0,0.00023321,2]
[391006614,1760285434214,-1000.0,0.00023321,2]
[391006615,1760285434224,-1000.0,0.00023321,2]
[391006616,1760285434235,-1000.0,0.00023321,2]
[391006617,1760285434245,-500.0,0.00023333,10]
[391006618,1760285434255,-1421.0506196,0.00023335,2]
[391006619,1760285434264,-2088.78532203,0.0002334,10]
[391006620,1760285434274,-168.0,0.00023379,2]
[391006621,1760285434283,-642.76671363,0.000234,2]
[391006622,1760285434292,-500.0,0.000234,2]
[391006623,1760285434301,-499.3,0.0002348,2]
[391006624,1760285434310,-1041.0,0.00023486,2]
[391006625,1760285434320,-420.0,0.00023499,2]
[391006626,1760285434330,-168.0,0.00023567,2]
[391006627,1760285434340,-500.0,0.00023569,2]
[391006628,1760285434350,-168.0,0.00023586,2]
[391006629,1760285434359,-151.0,0.00023594,2]
[391006630,1760285434369,-247.39966697,0.00023594,2]
[391006631,1760285434378,-151.0,0.00023594,2]
[391006632,1760285434388,-151.0,0.00023594,2]
[391006633,1760285434398,-168.0,0.00023596,2]
[391006634,1760285434407,-500.0,0.00023607,10]
[391006635,1760285434417,-1041.0,0.00023609,2]
[391006636,1760285434427,-1041.0,0.00023618,2]
[391006637,1760285434437,-151.0,0.00023649,2]
[391006638,1760285434446,-151.0,0.00023649,2]
[391006639,1760285434455,-151.0,0.00023649,2]
[391006640,1760285434465,-500.0,0.00023649,2]
[391006641,1760285434474,-500.0,0.00023687,2]
[391006642,1760285434485,-151.0,0.00023704,2]
[391006643,1760285434494,-151.0,0.00023704,2]
[391006644,1760285434503,-1041.0,0.00023726,2]
[391006645,1760285434512,-500.0,0.00023746,2]
[391006646,1760285434521,-151.38402759,0.00023753,2]
[391006647,1760285434531,-151.0,0.00023758,2]
[391006648,1760285434541,-153.63453505,0.00023758,2]
[391006649,1760285434552,-500.0,0.00023761,2]
[391006650,1760285434563,-168.0,0.00023774,2]
[391006651,1760285434574,-500.0,0.000238,2]
[391006652,1760285434584,-457.35118938,0.00023811,2]
[391006653,1760285434595,-168.35177197,0.00023855,2]
[391006654,1760285434604,-1500.0,0.00023868,2]
[391006655,1760285434614,-406.72294032,0.00023868,2]
[391006656,1760285434625,-1500.0,0.00023868,2]
[391006657,1760285434634,-1500.0,0.00023868,2]
[391006658,1760285434644,-1500.0,0.00023868,2]
[391006659,1760285434739,-500.0,0.00023881,10]
[391006660,1760285434749,-500.0,0.00023886,2]
[391006661,1760285434759,-160.0,0.00023894,2]
[391006662,1760285434772,-293.85068442,0.00023936,2]
[391006663,1760285434791,-151.38402759,0.00023945,2]
[391006664,1760285434803,-500.0,0.00023968,2]
[391006665,1760285434812,-500.0,0.00023973,2]
[391006666,1760285434822,-500.0,0.00023973,2]
[391006667,1760285434831,-500.0,0.00023973,2]
[391006668,1760285434842,-500.0,0.00023973,2]
[391006669,1760285434852,-500.0,0.00023973,2]
[391006670,1760285434861,-500.0,0.00023973,2]
[391006671,1760285434871,-500.09664347,0.00023973,2]
[391006672,1760285434880,-193.53599063,0.00023973,2]
[391006673,1760285434889,-500.0,0.00023973,2]
[391006674,1760285434899,-500.0,0.00023973,2]
[391006675,1760285434907,-500.0,0.00023973,2]
[391006676,1760285434916,-500.0,0.00023973,2]
[391006677,1760285434926,-500.0,0.00023973,2]
[391006678,1760285434935,-500.0,0.00023973,2]
[391006679,1760285434944,-500.0,0.00023973,2]
[391006680,1760285434953,-500.0,0.00023973,2]
[391006681,1760285434962,-500.0,0.00023973,2]
[391006682,1760285434971,-500.0,0.00023973,2]
[391006683,1760285434981,-500.0,0.00023973,2]
[391006684,1760285434992,-500.0,0.00023973,2]
[391006685,1760285435001,-500.0,0.00023973,2]
[391006686,1760285435010,-500.0,0.00023973,2]
[391006687,1760285435019,-501.70752271,0.00023973,2]
[391006688,1760285435029,-500.0,0.00023973,2]
[391006689,1760285435038,-500.21361187,0.00023973,2]
[391006690,1760285435047,-500.0,0.00023973,2]
[391006691,1760285435057,-500.0,0.00023973,2]
[391006692,1760285435066,-500.0,0.00023973,2]
[391006693,1760285435075,-500.0,0.00023973,2]
[391006694,1760285435084,-500.0,0.00023973,2]
[391006695,1760285435094,-500.0,0.00023973,2]
[391006696,1760285435104,-500.0,0.00023973,2]
[391006697,1760285435114,-500.0,0.00023973,2]
[391006698,1760285435123,-500.0,0.00023973,2]
[391006699,1760285435138,-500.0,0.00023973,2]
[391006700,1760285435147,-500.0,0.00023973,2]
[391006701,1760285435156,-500.0,0.00023973,2]
[391006702,1760285435165,-500.0,0.00023973,2]
[391006703,1760285435174,-500.0,0.00023973,2]
[391006704,1760285435184,-500.0,0.00023981,2]
[391006705,1760285435193,-1013.91,0.00024,2]
[391006706,1760285435202,-160.0,0.00024,3]
[391006707,1760285435212,-19434.08,0.00024,2]
[391006708,1760285435221,-24999.99,0.00024,2]
[391006709,1760285435230,-24999.99,0.00024,2]
[391006710,1760285435242,-500.0,0.00024005,2]
[391006711,1760285435251,-500.0,0.00024073,2]
[391006712,1760285435261,-500.0,0.00024073,2]
[391006713,1760285435270,-358.75583006,0.00024073,2]
[391006714,1760285435279,-160.0,0.00024082,2]
[391006715,1760285435288,-160.0,0.00024082,2]
[391006716,1760285435298,-402.2877588,0.00024082,2]
[391006717,1760285435307,-160.0,0.00024082,2]
[391006718,1760285435317,-417.15472785,0.00024082,2]
[391006719,1760285435327,-2088.78532203,0.00024092,2]
[391006720,1760285435336,-199.75,0.000241,2]
[391006721,1760285435346,-804.37022582,0.000241,2]
[391006722,1760285435356,-1554.09529507,0.000241,2]
[391006723,1760285435365,-3702.68528775,0.000241,2]
[391006724,1760285435375,-164.71814017,0.000241,2]
[391006725,1760285435384,-394.21104625,0.000241,2]
[391006726,1760285435393,-295.70963781,0.000241,2]
[391006727,1760285435403,-126026.95,0.000241,7]
[391006728,1760285435413,-402.2877588,0.000241,7]
[391006729,1760285435422,-2088.78532203,0.000241,7]
[391006730,1760285435431,-438.4507512,0.000241,2]
[391006731,1760285435440,-162.92617452,0.000241,2]
[391006732,1760285435450,-500.0,0.000241,2]
[391006733,1760285435459,-500.0,0.000241,2]
[391006734,1760285435468,-360.21253829,0.000241,2]
[391006735,1760285435477,-151.38402759,0.0002411,2]
[391006736,1760285435489,-500.0,0.00024112,2]
[391006737,1760285435498,-500.0,0.00024155,10]
[391006738,1760285435507,-179.64071856,0.00024169,2]
[391006739,1760285435517,-500.0,0.00024185,2]
[391006740,1760285435527,-720.0,0.00024253,20]
[391006741,1760285435537,-438.4507512,0.000243,2]
[391006742,1760285435546,-162.92617452,0.000243,2]
[391006743,1760285435555,-151.38402759,0.00024301,2]
[391006744,1760285435565,-457.35118938,0.00024356,2]
[391006745,1760285435574,-500.0,0.0002436,2]
[391006746,1760285435584,-199.75,0.000244,2]
[391006747,1760285435593,-804.37022582,0.000244,2]
[391006748,1760285435603,-1554.09529507,0.000244,2]
[391006749,1760285435612,-3702.68528775,0.000244,2]
[391006750,1760285435621,-164.71814017,0.000244,2]
[391006751,1760285435631,-394.21104625,0.000244,2]
[391006752,1760285435640,-295.70963781,0.000244,2]
[391006753,1760285435649,-756.59084505,0.00024416,2]
[391006754,1760285435659,-2000.0,0.00024416,2]
[391006755,1760285435668,-2000.0,0.00024416,2]
[391006756,1760285435678,-2000.0,0.00024416,2]
[391006757,1760285435687,-500.0,0.00024418,2]
[391006758,1760285435696,-500.0,0.00024429,10]
[391006759,1760285435705,-260.0,0.00024442,2]
[391006760,1760285435714,-500.0,0.00024448,2]
[391006761,1760285435724,-151.38402759,0.00024466,2]
[391006762,1760285435734,-1000.0,0.00024521,2]
[391006763,1760285435743,-557.5679129,0.00024521,2]
[391006764,1760285435752,-1000.0,0.00024521,2]
[391006765,1760285435762,-1000.0,0.00024521,2]
[391006766,1760285435772,-1000.0,0.00024521,2]
[391006767,1760285435785,-1000.0,0.00024521,2]
[391006768,1760285435794,-1000.0,0.00024521,2]
[391006769,1760285435804,-1000.0,0.00024521,2]
[391006770,1760285435813,-1000.0,0.00024521,2]
[391006771,1760285435822,-1000.0,0.00024521,2]
[391006772,1760285435831,-1000.0,0.00024521,2]
[391006773,1760285435840,-1000.0,0.00024521,2]
[391006774,1760285435849,-1000.0,0.00024521,2]
[391006775,1760285435860,-1000.0,0.00024521,2]
[391006776,1760285435869,-1000.0,0.00024521,2]
[391006777,1760285435878,-1000.0,0.00024521,2]
[391006778,1760285435888,-1000.0,0.00024521,2]
[391006779,1760285435898,-1000.0,0.00024521,2]
[391006780,1760285435907,-1000.0,0.00024521,2]
[391006781,1760285435916,-1000.0,0.00024521,2]
[391006782,1760285435925,-1000.0,0.00024521,2]
[391006783,1760285435935,-577.1107497,0.00024521,2]
[391006784,1760285435944,-1000.0,0.00024521,2]
[391006785,1760285435953,-1000.0,0.00024521,2]
[391006786,1760285435962,-1000.0,0.00024521,2]
[391006787,1760285435972,-1000.0,0.00024521,2]
[391006788,1760285435981,-1000.0,0.00024521,2]
[391006789,1760285435992,-1000.0,0.00024521,2]
[391006790,1760285436005,-1000.0,0.00024521,2]
[391006791,1760285436018,-1004.631657,0.00024521,2]
[391006792,1760285436027,-1000.0,0.00024521,2]
[391006793,1760285436036,-175.5319855,0.00024521,2]
[391006794,1760285436045,-500.0,0.00024521,2]
[391006795,1760285436055,-1000.0,0.00024521,2]
[391006796,1760285436064,-500.0,0.00024531,2]
[391006797,1760285436074,-804.37022582,0.000246,2]
[391006798,1760285436084,-1554.09529507,0.000246,2]
[391006799,1760285436093,-3702.68528775,0.000246,2]
[391006800,1760285436102,-164.71814017,0.000246,2]
[391006801,1760285436111,-394.21104625,0.000246,2]
[391006802,1760285436121,-295.70963781,0.000246,2]
[391006803,1760285436130,-438.4507512,0.000246,2]
[391006804,1760285436140,-162.92617452,0.000246,2]
[391006805,1760285436149,-264.2141144,0.00024621,2]
[391006806,1760285436163,-500.0,0.00024621,2]
[391006807,1760285436173,-467.37987447,0.00024648,2]
[391006808,1760285436182,-1000.0,0.00024648,2]
[391006809,1760285436192,-999.0,0.00024657,4]
[391006810,1760285436200,-151.38402759,0.00024658,30]
[391006811,1760285436209,-200.0,0.00024658,15]
[391006812,1760285436218,-151.0,0.00024658,2]
[391006813,1760285436309,-734.0,0.00024658,2]
[391006814,1760285436319,-500.0,0.0002467,2]
[391006815,1760285436328,-151.0,0.00024713,2]
[391006816,1760285436337,-734.0,0.00024713,2]
[391006817,1760285436346,-500.0,0.00024757,2]
[391006818,1760285436355,-500.0,0.00024761,2]
[391006819,1760285436364,-151.0,0.00024768,2]
[391006820,1760285436373,-734.0,0.00024768,2]
[391006821,1760285436382,-187.65763811,0.00024773,2]
[391006822,1760285436392,-804.37022582,0.000248,2]
[391006823,1760285436402,-1554.09529507,0.000248,2]
[391006824,1760285436411,-3702.68528775,0.000248,2]
[391006825,1760285436420,-394.21104625,0.000248,2]
[391006826,1760285436429,-295.70963781,0.000248,2]
[391006827,1760285436439,-2088.78532203,0.000248,7]
[391006828,1760285436448,-402.2877588,0.000248,7]
[391006829,1760285436457,-438.4507512,0.000248,2]
[391006830,1760285436466,-162.92617452,0.000248,2]
[391006831,1760285436476,-100286.879491,0.000248,2]
[391006832,1760285436486,-151.38402759,0.00024822,30]
[391006833,1760285436496,-232.7889835,0.00024822,2]
[391006834,1760285436506,-734.0,0.00024822,2]
[391006835,1760285436521,-170.57967988,0.00024831,8]
[391006836,1760285436530,-679.666,0.00024831,8]
[391006837,1760285436539,-500.0,0.00024873,2]
[391006838,1760285436548,-500.0,0.00024873,2]
[391006839,1760285436558,-500.0,0.00024873,2]
[391006840,1760285436567,-500.0,0.00024873,2]
[391006841,1760285436578,-152.50837303,0.00024873,2]
[391006842,1760285436587,-734.0,0.00024877,2]
[391006843,1760285436597,-500.0,0.00024891,2]
[391006844,1760285436606,-457.35118938,0.000249,2]
[391006845,1760285436616,-639598.298751,0.000249,2]
[391006846,1760285436626,-500.0,0.00024912,2]
[391006847,1760285436635,-734.0,0.00024932,2]
[391006848,1760285436644,-502.39604008,0.00024947,2]
[391006849,1760285436655,-2500.0,0.00024964,2]
[391006850,1760285436664,-2500.0,0.00024964,2]
[391006851,1760285436674,-2500.0,0.00024964,2]
[391006852,1760285436685,-500.0,0.00024973,2]
[391006853,1760285436695,-500.0,0.00024973,2]
[391006854,1760285436705,-177.60445815,0.00024973,2]
[391006855,1760285436714,-150.0,0.00024973,2]
[391006856,1760285436725,-500.0,0.00024973,2]
[391006857,1760285436734,-500.0,0.00024973,2]
[391006858,1760285436748,-500.0,0.00024973,2]
[391006859,1760285436759,-500.0,0.00024973,2]
[391006860,1760285436768,-500.0,0.00024973,2]
[391006861,1760285436779,-1014.346598,0.0002498,5]
[391006862,1760285436792,-734.0,0.00024987,2]
[391006863,1760285436802,-66857.919661,0.0002499,2]
[391006864,1760285436811,-360.0,0.0002499,2]
[391006865,1760285436821,-200.0,0.00024999,2]
[391006866,1760285436831,-370000.0,0.00025,2]
[391006867,1760285436840,-1000.0,0.00025,5]
[391006868,1760285436850,-154.55834199,0.00025,2]
[391006869,1760285436861,-205.384407,0.00025,2]
[391006870,1760285436871,-761.0,0.00025,2]
[391006871,1760285436880,-151.38402759,0.00025014,30]
[391006872,1760285436889,-166.0,0.00025037,3]
[391006873,1760285436899,-166.0,0.00025037,3]
[391006874,1760285436908,-166.0,0.00025037,3]
[391006875,1760285436920,-166.0,0.00025037,3]
[391006876,1760285436930,-175.0,0.00025037,3]
[391006877,1760285436939,-177.89972281,0.00025037,3]
[391006878,1760285436948,-734.0,0.00025042,2]
[391006879,1760285436957,-830.902,0.00025059,2]
[391006880,1760285436967,-3092.031,0.00025059,2]
[391006881,1760285436976,-1500.0,0.00025068,2]
[391006882,1760285436987,-1500.0,0.00025068,2]
[391006883,1760285436996,-1500.0,0.00025068,2]
[391006884,1760285437006,-1500.0,0.00025068,2]
[391006885,1760285437015,-1500.0,0.00025068,2]
[391006886,1760285437024,-1500.0,0.00025068,2]
[391006887,1760285437033,-1005.73864317,0.00025068,2]
[391006888,1760285437043,-1630.90976695,0.00025068,2]
[391006889,1760285437052,-1500.0,0.00025068,2]
[391006890,1760285437062,-1500.0,0.00025068,2]
[391006891,1760285437071,-1500.0,0.00025068,2]
[391006892,1760285437080,-1500.0,0.00025068,2]